Cogmind - Beta 13 X2 @@@ ROGUE MODE // 2024.01.06 @ 01:49:24 Player: Minty Result: Destroyed by H-61 Shepherd with Heavy Assault Cannon Performance ------------- Evolutions (2) 1000 Regions Visited (4) 800 Robots Destroyed (23) 115 Value Destroyed (569) 569 Prototype IDs (2) 40 Alien Tech Used (0) 0 Bonus (0) 0 TOTAL SCORE: 2524 Bonus ------- None Cogmind --------- Core Integrity 0/550 Matter 239/300 Energy 75/100 System Corruption 0% Temperature Cool (0) Movement Core (50) Location -8/Materials Parts ------- > --- POWER (1) -------- (None) > --- PROPULSION (3) --- (None) > --- UTILITY (5) ------ Visual Processing Unit Improved Signal Interpreter Advanced Targeting Computer > --- WEAPON (2) ------- Pulse Rifle > --- INVENTORY (5) ---- Light Nuclear Core Heavy EM Pulse Gun Heavy Assault Rifle Heavy Assault Rifle Improved Datajack Peak State ------------ > --- POWER ------------ (None) > --- PROPULSION ------- Backup Propulsion I Flight Unit > --- UTILITY ---------- Visual Processing Unit Improved Signal Interpreter Advanced Targeting Computer Reflective Plating > --- WEAPON ----------- Particle Gun Improved Datajack > --- INVENTORY -------- Light Nuclear Core Heavy EM Pulse Gun Particle Gun Heavy Assault Rifle [Rating: 18] Favorites ----------- Power Light Ion Engine Engine Light Ion Engine Propulsion Flight Unit Leg Aluminum Leg Hover Unit Backup Propulsion I Flight Unit Flight Unit Utility Visual Processing Unit Device Improved Heat Sink Storage Small Storage Unit Processor Visual Processing Unit Protection Reflective Plating Weapon Particle Gun Energy Gun Particle Gun Ballistic Gun Light Assault Rifle Ballistic Cannon Light Cannon Special Melee Weapon Improved Datajack Build | -11 -10 -10 -9 -8 ------- Run | Yrd Mat Min Mat Mat Slots Evolved 4 | . . . 2 2 Power . | . . . . . Propulsion 1 | . . . . 1 Utility 3 | . . . 2 1 Weapon . | . . . . . Parts Attached 47 | . 4 4 30 9 Power 7 | . . 1 6 . Engine 7 | . . 1 6 . Core . | . . . . . Reactor . | . . . . . Propulsion 9 | . 1 2 5 1 Treads . | . . . . . Leg 1 | . 1 . . . Wheel . | . . . . . Hover 1 | . . . . 1 Flight 7 | . . 2 5 . Utility 7 | . 1 . 3 3 Device 1 | . 1 . . . Storage . | . . . . . Processor 5 | . . . 3 2 Hackware . | . . . . . Protection 1 | . . . . 1 Artifact . | . . . . . Weapon 24 | . 2 1 16 5 Energy Gun 14 | . 1 . 9 4 Energy Cannon . | . . . . . Ballistic Gun 7 | . . 1 6 . Ballistic Cannon 2 | . 1 . 1 . Launcher . | . . . . . Special Weapon . | . . . . . Impact Weapon . | . . . . . Slashing Weapon . | . . . . . Piercing Weapon . | . . . . . Special Melee Weapon 1 | . . . . 1 Unidentified Prototypes . | . . . . . Parts Lost 20 | . . 3 8 9 Power 5 | . . 1 2 2 Propulsion 9 | . . 1 4 4 Utility 2 | . . 1 . 1 Weapon 4 | . . . 2 2 Highest Loss Streak 4 | . . 3 4 4 To Critical Strikes . | . . . . . Average Slot Usage (%) 64 | . 92 80 58 55 Engine 5 | . 14 14 4 2 Leg 5 | . 28 9 . . Hover 1 | . . . . 6 Flight 7 | . . 18 11 4 Device 1 | . 6 9 . . Storage 2 | . 14 4 . . Processor 20 | . . . 25 28 Energy Gun 10 | . 14 14 9 10 Ballistic Gun 5 | . 13 4 5 . Ballistic Cannon 1 | . . 4 1 . Naked Turns . | . . . . . Heaviest Build 14 | 10 14 14 9 10 Greatest Support 20 | 20 20 20 8 12 Greatest Overweight (x) 3 | . . . 1 3 Average Overweight (x) . | . . . . . Largest Inventory Capacity 8 | . 8 8 5 5 Average Capacity 5 | . 8 6 5 5 Most Carried 8 | . 8 6 5 5 Average Carried 4 | . 5 4 4 4 Final Capacity 8 | 8 8 5 5 5 Final Carried 6 | 6 6 4 5 5 Class Distribution -------------------- 77% | Mutant 22% | Scavenger-Mutant Dominant Class ---------------- Mutant | -10/Materials Mutant | -10/Mines Mutant | -9/Materials Mutant | -8/Materials Resources | -11 -10 -10 -9 -8 ----------- Run | Yrd Mat Min Mat Mat Matter Collected 636 | 200 58 17 354 7 Remotely . | . . . . . Salvage Created 694 | . 189 . 418 87 Parts 52 | . 17 . 33 2 Haulers Intercepted 1 | . . . 1 . Recyclers Shooed . | . . . . . Parts Field Recycled . | . . . . . Retrieved Matter . | . . . . . Parts Self-Destructed . | . . . . . Prevented . | . . . . . Kills | -11 -10 -10 -9 -8 ------- Run | Yrd Mat Min Mat Mat Combat Hostiles Destroyed 20 | . 6 . 12 2 Guns 17 | . 6 . 9 2 Cannons 2 | . . . 2 . AOE 1 | . . . 1 . Classes Destroyed 5 | . 3 . 2 . Hauler 1 | . . . 1 . Watcher 2 | . 1 . 1 . Swarmer 9 | . 3 . 6 . Grunt 9 | . 3 . 5 1 Sentry 2 | . . . 1 1 Best Kill Streak 5 | . 4 . 5 2 Combat Bots Only 5 | . 4 . 5 2 Max Kills in Single Turn 1 | . 1 . 1 1 Gunslinging . | . . . . . Exploded 1 | . . . 1 . Melee . | . . . . . Uniques/NPCs Destroyed . | . . . . . Combat | -11 -10 -10 -9 -8 -------- Run | Yrd Mat Min Mat Mat Hostile Shots Fired 245 | . 42 6 117 80 Missed 68 | . 5 1 40 22 Damage Taken 2529 | . 391 167 838 1133 Core 1051 | . 70 59 346 576 Absorbed by Shields . | . . . . . Ignored by Resistances 42 | . . . . 42 Regen/Repaired (Parts) 48 | . . . 48 . Core Remaining (%) 53 | 100 . 48 13 . Volleys Fired 91 | . 18 . 61 12 Largest 2 | . 2 . 2 2 Hottest 130 | . 70 . 115 130 Shots Fired 145 | . 36 . 90 19 Gun 139 | . 36 . 84 19 Cannon 6 | . . . 6 . Launcher . | . . . . . Special . | . . . . . Kinetic 61 | . 18 . 43 . Thermal 70 | . 18 . 33 19 Explosive . | . . . . . Electromagnetic 14 | . . . 14 . Robot Hit Streak 10 | . 10 . 5 9 Robot Miss Streak 5 | . 3 . 5 3 Penetration Max . | . . . . . Secondary Targets 2 | . . . 2 . Max Gunslinging Chain 1 | . . . 1 . Shots Hit Robots 84 | . 22 . 48 14 Core Hits 38 | . 12 . 19 7 Critical Kills . | . . . . . Critical Parts Destroyed . | . . . . . Critical Strikes 2 | . . . 1 1 Burn 2 | . . . 1 1 Melee Attacks . | . . . . . Impact . | . . . . . Slashing . | . . . . . Piercing . | . . . . . Sneak Attacks . | . . . . . Combat Hostiles . | . . . . . Follow-up Attacks . | . . . . . Damage Inflicted 1141 | . 238 . 682 221 Guns 1017 | . 238 . 559 220 Cannons 89 | . . . 89 . Explosions 34 | . . . 34 . Melee . | . . . . . Ramming 1 | . . . . 1 Kinetic 467 | . 111 . 356 . Thermal 613 | . 127 . 266 220 Explosive . | . . . . . Electromagnetic 60 | . . . 60 . Impact . | . . . . . Slashing . | . . . . . Piercing . | . . . . . Highest Corruption . | . . . . . Average Corruption . | . . . . . Corruption Purged . | . . . . . Corruption Blocked . | . . . . . Overload Shots . | . . . . . Overflow Damage . | . . . . . Projectiles . | . . . . . Explosions . | . . . . . Melee . | . . . . . Knockbacks . | . . . . . Impact . | . . . . . Kinetic . | . . . . . Secondary . | . . . . . Self-Inflicted Damage 35 | . . . 35 . Shots 1 | . . . 1 . Rammed 1 | . . . . 1 Targets Rammed 1 | . . . . 1 Kicked . | . . . . . Crushed . | . . . . . Highest Temperature 204 | . 195 . 204 192 Average Temperature 62 | . 69 . 43 97 Received Heat Transfer 801 | . 153 . 261 387 Effects 3 | . . . 3 . Interference 3 | . . . 3 . Siege Activations . | . . . . . Robots Corrupted . | . . . . . Combat Hostiles . | . . . . . Parts Fried . | . . . . . Impact Corruptions . | . . . . . Robots Melted . | . . . . . Combat Hostiles . | . . . . . Parts Melted 3 | . . . 1 2 Heat Transferred 1656 | . 311 . 753 592 Parts Sabotaged . | . . . . . Parts Stolen . | . . . . . Parts Stripped . | . . . . . Power Chain Reactions 1 | . . . 1 . Missiles Intercepted . | . . . . . Alert | -11 -10 -10 -9 -8 ------- Run | Yrd Mat Min Mat Mat Peak Influence 481 | . 187 77 326 481 Initial 72 | . . 72 22 66 Average 180 | . 54 70 178 282 Maximum Alert Level 2 | . . . 1 2 Low Security (%) 61 | . 100 100 60 31 Level 1 31 | . . . 39 43 Level 2 6 | . . . . 25 Level 3 . | . . . . . Level 4 . | . . . . . Level 5 . | . . . . . High Security . | . . . . . Max Security . | . . . . . Squads Dispatched 6 | . 2 . 1 3 Investigation 3 | . . . 1 2 Extermination . | . . . . . Reinforcement 3 | . 2 . . 1 Assault . | . . . . . Garrison . | . . . . . Intercept . | . . . . . Searches Triggered . | . . . . . Construction Impeded . | . . . . . Haulers Reinforced . | . . . . . Active Scanning Responses . | . . . . . Cargo Convoy Interrupts . | . . . . . Stealth | -11 -10 -10 -9 -8 --------- Run | Yrd Mat Min Mat Mat Distress Signals 3 | . . . . 3 Communications Jammed . | . . . . . Distress Signals . | . . . . . Times Spotted 75 | . 10 19 17 29 Peak Tracking Total 15 | . 4 15 5 10 Tactical Retreats 7 | . . . 1 6 Traps | -11 -10 -10 -9 -8 ------- Run | Yrd Mat Min Mat Mat Traps Triggered 1 | . . . . 1 Indirectly . | . . . . . Trap Hack Attempts 4 | . . . . 4 Triggered . | . . . . . Disarmed . | . . . . . Reprogrammed . | . . . . . Reused . | . . . . . Traps Extracted . | . . . . . Installed . | . . . . . Triggered . | . . . . . Machines | -11 -10 -10 -9 -8 ---------- Run | Yrd Mat Min Mat Mat Machines Disabled 1 | . . . 1 . Max in Single Turn 1 | . . . 1 . Machines Repaired . | . . . . . Machines Dismantled . | . . . . . Machines Sabotaged . | . . . . . Overloaded Fab Kills . | . . . . . Hacking | -11 -10 -10 -9 -8 --------- Run | Yrd Mat Min Mat Mat Machines Accessed 8 | . 1 . 3 4 Terminals 4 | . . . 2 2 Fabricators . | . . . . . Repair Stations 3 | . . . 1 2 Recycling Units 1 | . 1 . . . Scanalyzers . | . . . . . Garrison Access . | . . . . . Total Hacks 16 | . 1 . 8 7 Successful 11 | . 1 . 5 5 Failed 5 | . . . 3 2 Catastrophic 2 | . . . 1 1 Database Lockouts . | . . . . . Manual 6 | . . . 3 3 Terminals 10 | . . . 5 5 Fabricators . | . . . . . Repair Stations 5 | . . . 3 2 Recycling Units 1 | . 1 . . . Scanalyzers . | . . . . . Garrison Access . | . . . . . Terminal Hacks 5 | . . . 3 2 Prototype ID Bank 1 | . . . 1 . Recycling Unit Index 1 | . . . . 1 Locate Traps 2 | . . . 1 1 Zone Layout 1 | . . . 1 . Fabricator Hacks . | . . . . . Repair Station Hacks 4 | . . . 2 2 Scan Component 1 | . . . 1 . Repair 1 | . . . 1 . Refit 2 | . . . . 2 Recycling Unit Hacks 1 | . 1 . . . Report Inventory 1 | . 1 . . . Scanalyzer . | . . . . . Garrison Access Hacks . | . . . . . Unauthorized Hacks 1 | . . . . 1 Terminals 1 | . . . . 1 Sabotage 1 | . . . . 1 Fabricators . | . . . . . Repair Stations . | . . . . . Recycling Units . | . . . . . Scanalyzers . | . . . . . Garrison Access . | . . . . . Data Cores Recovered . | . . . . . Used . | . . . . . Hacking Detections 7 | . 1 . 3 3 Full Trace Events 2 | . . . 1 1 Feedback Events . | . . . . . Feedback Blocked . | . . . . . Robot Schematics Acquired . | . . . . . Robots Built . | . . . . . Authchips . | . . . . . Time . | . . . . . Total Robot Build Rating . | . . . . . Part Schematics Acquired . | . . . . . Parts Built . | . . . . . Authchips . | . . . . . Time . | . . . . . Total Part Build Rating . | . . . . . Parts Repaired 1 | . . . 1 . Time 32 | . . . 32 . Parts Recycled . | . . . . . Recycled Matter . | . . . . . Retrieved Matter . | . . . . . Retrieved Components . | . . . . . Parts Scanalyzed . | . . . . . Part Schematics Acquired . | . . . . . Parts Damaged . | . . . . . Bothacking | -11 -10 -10 -9 -8 ------------ Run | Yrd Mat Min Mat Mat Used RIF Installer . | . . . . . Robots Hacked . | . . . . . Non-combat . | . . . . . Combat . | . . . . . Robot Hacks Applied . | . . . . . Relay Couplers Released . | . . . . . Fabnet Peak Effective % . | . . . . . Robots Rewired . | . . . . . Allies Hacked . | . . . . . Hacks Repelled . | . . . . . Allies | -11 -10 -10 -9 -8 -------- Run | Yrd Mat Min Mat Mat Total Allies . | . . . . . Largest Group . | . . . . . Highest-Rated Group . | . . . . . Highest-Rated Ally . | . . . . . Total Orders . | . . . . . Ally Attacks . | . . . . . Total Damage . | . . . . . Kills . | . . . . . Allies Corrupted . | . . . . . Allies Melted . | . . . . . Intel | -11 -10 -10 -9 -8 ------- Run | Yrd Mat Min Mat Mat Robot Analysis Total . | . . . . . Derelict Logs Recovered . | . . . . . Drone Launches . | . . . . . Drone Recoveries . | . . . . . Exploration | -11 -10 -10 -9 -8 ------------- Run | Yrd Mat Min Mat Mat Turns Passed 932 | . 178 28 470 256 Spaces Moved 1021 | 1 97 44 492 387 Core 199 | . . . 122 77 Treads . | . . . . . Legs 100 | 1 97 2 . . Wheels . | . . . . . Hover 72 | . . . . 72 Flight 650 | . . 42 370 238 Fastest Speed 37 | 120 120 37 37 40 Average Speed 53 | 120 120 41 42 51 Slowest Speed 200 | 120 120 120 117 200 Overloaded Moves . | . . . . . Propulsion Burnouts . | . . . . . Robots Hopped 24 | . . 10 13 1 Cave-ins Triggered . | . . . . . Exploration Rate (%) 25 | 2 24 15 34 51 Regions Visited 4 Branch Regions 1 Pre-discovered Areas . | . . . . . Known Exits Taken 1 | . . . 1 . Unknown Exits Taken 3 | 1 1 1 . . Scrap Searched . | . . . . . Spaces Dug . | . . . . . Terrain Destroyed 6 | . . . 6 . Melee . | . . . . . Projectile . | . . . . . AOE 6 | . . . 6 . Terrain Rammed . | . . . . . Walls Destroyed . | . . . . . Machines Disabled . | . . . . . Actions | -11 -10 -10 -9 -8 --------- Run | Yrd Mat Min Mat Mat Total 1250 | . 127 44 654 425 Wait 72 | . . 1 69 2 Move 973 | . 96 25 467 385 Hop 20 | . . 8 11 1 Pick Up 14 | . 4 1 7 2 Fast Attach 12 | . 1 . 7 4 Attach 12 | . . 1 8 3 Detach 7 | . . 1 2 4 Swap 23 | . 3 3 15 2 Drop 21 | . 5 4 7 5 Fire 91 | . 18 . 61 12 Melee . | . . . . . Ram 1 | . . . . 1 Kick . | . . . . . Crush . | . . . . . Escape Stasis . | . . . . . Rewire . | . . . . . Trap 4 | . . . . 4 Miscellaneous . | . . . . . Route ------- -11/Scrapyard -10/Materials -10/Mines -9/Materials -8/Materials (discovered 1 exit: [*Fac]) History --------- Turn | Location | Event 1 | -11/Scrapyard | Discovered new exit (range 0) 1 | -11/Scrapyard | Entered Materials 172 | -10/Materials | Discovered new exit (range 6) 179 | -10/Materials | Entered Mines 180 | -10/Mines | Assembled infested the area 204 | -10/Mines | Discovered new exit (range 11) 207 | -10/Mines | Core integrity fell below 50% 207 | -10/Mines | Entered Materials 207 | -9/Materials | Evolved 2 slots: Utility x2 235 | -9/Materials | Lost 3 parts (1p1n1u) 378 | -9/Materials | Lost 4 parts (1p2n1w) 493 | -9/Materials | Core integrity fell below 50% 526 | -9/Materials | Lost 4 parts (1p2n1w) 555 | -9/Materials | Core integrity fell below 20% 629 | -9/Materials | Discovered new exit (range 18) 666 | -9/Materials | Repaired Hvy. EM Pulse Gun 677 | -9/Materials | Identified exit to Materials 677 | -9/Materials | Entered another Materials area 677 | -8/Materials | Evolved 2 slots: Propulsion x1, Utility x1 778 | -8/Materials | Build established: Mutant 856 | -8/Materials | Discovered new exit (range 4) 861 | -8/Materials | Lost 4 parts (2n1u1w) 914 | -8/Materials | Core integrity fell below 50% 930 | -8/Materials | Core integrity fell below 20% 933 | -8/Materials | Destroyed by H-61 Shepherd with Heavy Assault Cannon Last Messages --------------- 00885_ K-01 Serf cleans the Terminal. 00886_ K-01 Serf cleans the Matter Pump. 00897_ W-25 Informer destroyed. 00900_ W-25 Informer sends out distress signal. 00910_ ALERT: Suspicious intruders detected, dispatching Cutter reinforcements to area. 00912_ Penetrated by Slug. 00915_ W-25 Informer sends out distress signal. 00916_ Critical hit (Burn: +37). 00917_ Knocked back. 00918_ Acquired 7 matter. 00919_ Backup Propulsion I destroyed. 00919_ Knocked back. 00919_ Penetrated by Slug. 00919_ Backup Power I destroyed. 00919_ Knocked back. 00921_ Pulse Rifle destroyed. 00929_ Knocked back. 00931_ C-17 Slicer suffers critical hit (Burn). 00933_ Penetrated by Slug. Map ----- +----------------------------------------------------+ | | | | | | | | | | | | | | | | | | | | | ??????????????????????????????????????? | | ??????????????????????????????????????? | | ??????????????????????????????????????? | | ??????????????????????????????????????? | | ??????????????????????????????????????? | | ??????????????????????????????????????? | | ??????????????????????????????????????? | | ??????????????????????????######??????? | | ??????????????????????????# ???????? | | ?????????????????????#????# ????????? | | ???????????????????? #????+ #????????? | | ??????????????????? #????# #????????? | | ?????????????????? ????## ##???????? | | ??????????###+####;####### #???????? | | ??????????# % % ] #???????? | | ??????????# %@ c H +???????? | | ??????????###+####+#######! #???????? | | ????????????????? ????# ##???????? | | ????????????????? ???# #???????? | | ????????????????# ??##% #???????? | | ????????????????# !!! #?# % ######### | | ????????????????# !! #?# ! # | | ????????????????# !! #?# # !!= # | | ????????????############?## # !!= # | | ????????????# ###### # !! # | | ????????????#* """ + # # | | ????????????# """ # % + """ # | | ????????????# """ #+####"## """ /# | | ????????????# # #? """ # | | ????????????# ! """ + """ !#?? # | | ????????????# """ # "T" #??###### # | | ????????????# ""??# !#?????????# | | ????????????#! ???#####/###????????# | | ????????????###?##???# #????????# | | ?????????????????????# /#?######## | | ??????###########????# #?# # | | ??????# ! #????# #?# ] # | | ??????# ###### *[ #?# [/ | | ??????# # ## [[ #?# " " # | | ??????# + + %! #?# "R" # | +----------------------------------------------------+ Best States ------------- Heat Dissipation 39 Energy Generation 10 Energy Capacity 125 Matter Stores 300 Matter Capacity 300 Sight Range 18 Terrain Scan Density 10 Armor Coverage 150 Resistance: TH 10 Evasion (%) 62 Targeting Accuracy 8 Item Schematics ----------------- None Robot Schematics ------------------ None Fabricated ------------ Nothing Alien Tech Used ----------------- None Achievements -------------- None Challenges ------------ None Game ------ Seed SapperReflectiveCycler Manual? 0 Play Time 00:13:29 Cumulative 572.7 hours Start 2024.01.06 @ 01:27:10 End 2024.01.06 @ 01:49:24 Sessions 3 Manual Loads 0 Difficulty Rogue Special Mode None Game No. 471 Rogue 198 Adventurer 123 Explorer 150 Win Type - Total 25 Types 19/0/4/1/0/0/0/1/0 Lore% 77 Gallery% 90 Achievement% 75 Wizard Run 0 Options --------- ASCII 0 Keyboard 1 Movement Numpad Keybinds 0 Fullscreen 2 Font 18/X11Bold Map View 76x50 Zoom Use 0% Tactical HUD 1 Map Filters NONE Filters NONE Steam 1 RUN: 809ef132-d73f-4204-b6e3-34ea4d85fce9